bitfinex/quotes_BTCUSD_20230403
["timestamp","ask_amount","ask_price","bid_price","bid_amount"]
[1680560957040,0.02288,27873.0,27872.0,1.72415256]
[1680560957257,0.02288,27873.0,27872.0,1.75215256]
[1680560958112,0.02288,27873.0,27872.0,1.72415256]
[1680560958786,0.02288,27873.0,27872.0,1.75215256]
[1680560959009,0.02288,27873.0,27872.0,1.72415256]
[1680560959666,0.02288,27873.0,27872.0,1.75285256]
[1680560959888,0.02288,27873.0,27872.0,1.72485256]
[1680560960092,0.02288,27873.0,27872.0,1.75285256]
[1680560960309,0.02288,27876.0,27872.0,1.75285256]
[1680560960531,0.02288,27876.0,27875.0,0.84909056]
[1680560960741,0.02288,27876.0,27875.0,1.01997756]
[1680560961165,0.02288,27876.0,27875.0,0.93447756]
[1680560962028,0.02288,27876.0,27875.0,0.96247756]
[1680560962726,0.02288,27876.0,27875.0,0.93465756]
[1680560962932,0.02288,27876.0,27875.0,1.02870941]
[1680560964891,0.02288,27876.0,27875.0,1.43194049]
[1680560965996,0.02288,27876.0,27875.0,1.41390941]
[1680560966221,0.02288,27876.0,27875.0,1.32870941]
[1680560966454,0.02288,27876.0,27875.0,1.41420941]
[1680560966914,0.02288,27876.0,27875.0,1.6453025]
[1680560967142,0.02288,27876.0,27875.0,1.32020941]
[1680560968934,0.02288,27876.0,27875.0,1.32870941]
[1680560969158,0.02288,27876.0,27875.0,1.41390941]
[1680560969388,0.02288,27876.0,27875.0,1.7514519]
[1680560969610,0.02288,27876.0,27875.0,1.41390941]
[1680560973218,0.02288,27876.0,27875.0,1.81996367]
[1680560973441,0.02288,27876.0,27875.0,1.72626367]
[1680560973654,0.02288,27876.0,27875.0,1.76526367]
[1680560973880,0.02288,27876.0,27875.0,1.76544367]
[1680560974348,0.02288,27876.0,27875.0,1.76526367]
[1680560974564,0.02288,27876.0,27875.0,1.76466442]
[1680560974995,0.02288,27876.0,27875.0,1.76472442]
[1680560975224,0.02288,27876.0,27875.0,1.36711016]
[1680560975443,0.02288,27876.0,27875.0,1.36675016]
[1680560975684,0.02288,27876.0,27875.0,1.67709678]
[1680560975898,0.02288,27876.0,27875.0,1.67739678]
[1680560976117,0.02288,27876.0,27875.0,1.63893678]
[1680560976337,0.02288,27876.0,27875.0,1.64001678]
[1680560976581,0.02288,27876.0,27875.0,1.63995678]
[1680560976803,0.02288,27876.0,27875.0,1.63977678]
[1680560977024,0.02288,27876.0,27875.0,1.63965678]
[1680560977245,0.02288,27876.0,27875.0,1.81857678]
[1680560977682,0.02288,27876.0,27875.0,1.81863678]
[1680560977942,0.02288,27876.0,27875.0,1.50811016]
[1680560978159,0.02288,27876.0,27875.0,1.50817016]
[1680560978352,0.02288,27876.0,27875.0,1.50757016]
[1680560978601,0.02288,27876.0,27875.0,1.50781016]
[1680560978793,0.02288,27876.0,27875.0,1.50763016]
[1680560979494,0.02288,27876.0,27875.0,1.52548124]
[1680560980162,0.02288,27876.0,27875.0,1.62548124]
[1680560981937,0.02288,27876.0,27875.0,1.71138124]
[1680560982166,0.02288,27876.0,27875.0,1.71522124]
[1680560982393,0.02288,27876.0,27875.0,2.07343941]
[1680560982625,0.02288,27876.0,27875.0,1.49895016]
[1680560982847,0.05,27879.0,27877.0,0.40888]
[1680560983066,0.05,27879.0,27878.0,0.97708856]
[1680560983283,0.05,27879.0,27878.0,0.92620056]
[1680560983968,0.05,27879.0,27878.0,1.65395296]
[1680560984745,0.05,27879.0,27878.0,1.68195296]
[1680560985265,0.02288,27880.0,27878.0,1.68195296]
[1680560985558,0.02288,27880.0,27879.0,1.30108256]
[1680560985779,0.02288,27880.0,27879.0,1.59836256]
[1680560986583,0.02288,27883.0,27879.0,1.68239205]
[1680560986877,0.00123892,27888.0,27886.0,0.40888]
[1680560987120,0.02288,27890.0,27888.0,0.40888]
[1680560987397,0.02288,27890.0,27889.0,1.37669031]
[1680560987650,0.02288,27890.0,27889.0,1.06819031]
[1680560987971,0.02288,27890.0,27889.0,1.25464856]
[1680560988204,0.02288,27890.0,27889.0,1.38474892]
[1680560988421,0.02288,27893.0,27891.0,0.03588]
[1680560988661,0.02288,27893.0,27892.0,1.46490156]
[1680560988894,0.02288,27893.0,27892.0,1.76490156]
[1680560989116,0.02288,27893.0,27892.0,2.93259686]
[1680560989330,0.02288,27893.0,27892.0,2.99882871]
[1680560990057,0.028125,27895.0,27894.0,0.40888]
[1680560990285,0.028125,27895.0,27894.0,1.24921856]
[1680560990505,0.028125,27895.0,27894.0,1.82710072]
[1680560991193,0.00018,27898.0,27894.0,1.8731318]
[1680560991421,1.0,27900.0,27894.0,1.8731318]
[1680560991422,1.00018,27900.0,27898.0,0.40888]
[1680560991639,1.00018,27900.0,27899.0,1.01115356]
[1680560991861,1.00018,27900.0,27899.0,1.37164366]
[1680560992109,1.00018,27900.0,27899.0,1.07554156]
[1680560992545,1.00018,27900.0,27899.0,1.10354156]
[1680560992987,1.00018,27900.0,27899.0,1.40354156]
[1680560993260,1.00018,27900.0,27899.0,1.50354156]
[1680560993802,1.00018,27900.0,27899.0,1.40354156]
[1680560994077,1.00018,27900.0,27899.0,1.45736861]
[1680560994358,1.00018,27900.0,27899.0,1.56120861]
[1680560994900,1.00018,27900.0,27899.0,1.79777501]
[1680560995446,1.00018,27900.0,27899.0,2.02031327]
[1680560995704,1.00018,27900.0,27899.0,1.69349501]
[1680560996006,1.0,27900.0,27899.0,1.66561501]
[1680560996233,1.0,27900.0,27899.0,1.69361501]
[1680560996487,1.0,27900.0,27899.0,1.69745501]
[1680560997030,1.0,27900.0,27899.0,1.71548609]
[1680560997031,0.96361315,27900.0,27899.0,1.71548609]
[1680560997249,0.96361315,27900.0,27899.0,1.69745501]
[1680560997684,0.96361315,27900.0,27899.0,1.61205501]
[1680560997920,0.96361315,27900.0,27899.0,1.58405501]
[1680560998151,0.96361315,27900.0,27899.0,0.84590356]
[1680560998152,1.10670996,27900.0,27899.0,0.84590356]
[1680560998377,0.96499315,27900.0,27899.0,0.84572356]
[1680560999037,0.96499315,27900.0,27899.0,0.81772356]
[1680560999268,1.51372238,27900.0,27899.0,0.401]
[1680560999508,0.19982,27898.0,27897.0,0.00012]
[1680560999727,0.1,27897.0,27893.0,0.10252339]
[1680560999947,0.222777,27898.0,27896.0,0.23490319]
[1680560999948,0.19982,27898.0,27896.0,0.23490319]
[1680561000167,0.0012,27897.0,27896.0,0.23490319]
[1680561000411,0.0012,27897.0,27896.0,0.31180656]
[1680561000634,0.00138,27897.0,27896.0,0.23490319]
[1680561000855,0.00018,27897.0,27896.0,0.64341675]
[1680561001079,0.00018,27897.0,27896.0,0.80471375]
[1680561001318,0.00318,27897.0,27896.0,0.80471375]
[1680561001553,0.00018,27897.0,27896.0,0.80471375]
[1680561001782,0.00318,27897.0,27896.0,0.90828609]
[1680561002000,0.00018,27897.0,27896.0,0.90828609]
[1680561002222,0.00318,27897.0,27896.0,0.92620909]
[1680561002440,0.00318,27897.0,27896.0,1.41018195]
[1680561002699,0.003,27897.0,27896.0,1.41018195]
[1680561003559,0.003,27897.0,27896.0,1.17719195]
[1680561003774,0.003,27897.0,27896.0,0.66172475]
[1680561004008,0.003,27897.0,27896.0,0.62567375]
[1680561004236,0.003,27897.0,27896.0,0.67771475]
[1680561004456,0.003,27897.0,27896.0,1.07856486]
[1680561004670,0.003,27897.0,27896.0,1.20796605]
[1680561004886,0.003,27897.0,27896.0,0.80711594]
[1680561005111,0.003,27897.0,27896.0,0.81561594]
[1680561005379,0.003,27897.0,27896.0,1.11561594]
[1680561005626,0.003,27897.0,27896.0,1.11579594]
[1680561005845,0.003,27897.0,27896.0,1.21579594]
[1680561006290,0.003,27897.0,27896.0,1.45191594]
[1680561006513,0.003,27897.0,27896.0,1.44951594]
[1680561006739,0.003,27897.0,27896.0,1.44957594]
[1680561006952,0.96361315,27900.0,27896.0,1.44891594]
[1680561007189,0.96361315,27900.0,27899.0,0.80482375]
[1680561007409,0.96361315,27900.0,27899.0,1.11747756]
[1680561007633,0.85798416,27900.0,27899.0,1.50764075]
[1680561007939,0.85798416,27900.0,27899.0,1.50746075]
[1680561008158,0.85798416,27900.0,27899.0,1.65597483]
[1680561008372,0.85798416,27900.0,27899.0,1.68391483]
[1680561008591,0.85798416,27900.0,27899.0,1.68403483]
[1680561008816,0.85798416,27900.0,27899.0,1.59957483]
[1680561009032,0.85798416,27900.0,27899.0,1.59963483]
[1680561009320,0.85798416,27900.0,27899.0,1.57175483]
[1680561009769,0.85798416,27900.0,27899.0,1.57157483]
[1680561009987,0.85798416,27900.0,27899.0,1.59957483]
[1680561010202,0.85798416,27900.0,27899.0,1.70915483]
[1680561011522,0.54676621,27900.0,27899.0,1.70915483]
[1680561011742,0.02288,27907.0,27906.0,0.00018]
[1680561011743,0.01958375,27907.0,27906.0,0.00018]
[1680561011977,0.01958375,27907.0,27906.0,1.07211056]
[1680561012193,0.01958375,27907.0,27906.0,1.10390094]
[1680561012420,0.01958375,27907.0,27906.0,1.14617275]
[1680561012875,0.01958375,27907.0,27906.0,1.47417275]
[1680561013585,0.01958375,27907.0,27906.0,1.71048345]
[1680561013804,0.01958375,27907.0,27906.0,1.68248345]
[1680561014034,0.01958375,27907.0,27906.0,1.47417275]
[1680561014712,0.01958375,27907.0,27906.0,1.57417275]
[1680561014933,0.01958375,27907.0,27906.0,1.91236993]
[1680561015153,0.01958375,27907.0,27906.0,1.57417275]
[1680561015381,0.01958375,27907.0,27906.0,1.65927275]
[1680561015595,0.01958375,27907.0,27906.0,1.89558345]
[1680561015831,6e-05,27912.0,27906.0,1.89564345]
[1680561016065,0.01984368,27912.0,27911.0,0.80459375]
[1680561016289,0.01984368,27912.0,27911.0,0.66183875]
[1680561016290,0.33772339,27912.0,27911.0,0.66183875]
[1680561016513,0.33772339,27912.0,27911.0,0.83460575]
[1680561016742,0.2,27913.0,27911.0,0.85269975]
[1680561016743,0.20018,27913.0,27911.0,0.85269975]
[1680561016978,0.195,27913.0,27912.0,0.66267675]
[1680561017213,0.195,27913.0,27912.0,0.81542675]
[1680561017440,0.19518,27913.0,27912.0,0.81524675]
[1680561017663,0.19518,27913.0,27912.0,1.26702666]
[1680561017896,0.19518,27913.0,27912.0,1.26046205]
[1680561017897,0.00018,27913.0,27912.0,1.26046205]
[1680561018128,0.02288,27914.0,27912.0,1.51528356]
[1680561018348,0.02288,27914.0,27913.0,1.06551333]
[1680561018569,0.02288,27914.0,27913.0,1.31727533]
[1680561018789,0.02288,27914.0,27913.0,1.85844666]
[1680561019012,0.02288,27914.0,27913.0,1.87647774]
[1680561019227,0.02278919,27914.0,27913.0,1.87647774]
[1680561019480,9.19e-06,27914.0,27913.0,2.27647774]
[1680561019731,9.19e-06,27917.0,27916.0,0.005]
[1680561019956,9.19e-06,27917.0,27916.0,1.13163675]
[1680561020187,9.19e-06,27917.0,27916.0,2.01980465]
[1680561020413,9.19e-06,27917.0,27916.0,1.94562218]
[1680561020655,9.19e-06,27917.0,27916.0,1.13076034]
[1680561020897,9.19e-06,27917.0,27916.0,1.87114827]
[1680561021344,9.19e-06,27917.0,27916.0,2.25844827]
[1680561021572,9.19e-06,27917.0,27916.0,2.23044827]
[1680561021789,9.19e-06,27917.0,27916.0,2.25844827]
[1680561022039,9.19e-06,27917.0,27916.0,2.49770745]
[1680561022255,9.19e-06,27917.0,27916.0,4.35966959]
[1680561022698,9.19e-06,27917.0,27916.0,4.59892877]
[1680561022919,9.19e-06,27917.0,27916.0,4.59229036]
[1680561023370,0.01985287,27917.0,27916.0,1.16824362]
[1680561023600,9.19e-06,27917.0,27916.0,0.95272362]
[1680561023818,9.19e-06,27917.0,27916.0,0.96269254]
[1680561024485,9.19e-06,27917.0,27916.0,0.93469254]
[1680561024752,9.19e-06,27917.0,27916.0,1.04779254]
[1680561025001,9.19e-06,27917.0,27916.0,1.31979254]
[1680561025222,9.19e-06,27917.0,27916.0,1.70290723]
[1680561025444,9.19e-06,27917.0,27916.0,2.04561252]
[1680561026130,9.19e-06,27917.0,27916.0,1.78529783]
[1680561026337,9.19e-06,27917.0,27916.0,1.81329783]
[1680561026559,9.19e-06,27917.0,27916.0,2.00615941]
[1680561026781,9.19e-06,27917.0,27916.0,2.03415941]
[1680561027002,9.19e-06,27917.0,27916.0,2.40907949]
[1680561027248,9.19e-06,27917.0,27916.0,1.97129941]
[1680561027453,9.19e-06,27917.0,27916.0,1.99929941]
[1680561027893,9.19e-06,27917.0,27916.0,1.99270794]
[1680561028334,9.19e-06,27917.0,27916.0,2.39270794]
[1680561028603,0.02288,27924.0,27921.0,0.4]
[1680561028836,0.02288,27924.0,27923.0,0.94088375]
[1680561029058,0.02288,27924.0,27923.0,1.41992356]
[1680561029281,0.02288,27924.0,27923.0,3.32100514]
[1680561029502,0.02288,27924.0,27923.0,3.76602859]
[1680561029722,0.02288,27924.0,27923.0,3.40572859]
[1680561029960,0.02288,27924.0,27923.0,3.43372859]
[1680561030404,0.02288,27924.0,27923.0,3.52708857]
[1680561030841,0.02288,27924.0,27923.0,3.42708857]
[1680561031272,0.02288,27924.0,27923.0,3.62791064]
[1680561031490,0.02288,27924.0,27923.0,3.48301064]
[1680561031711,0.02288,27924.0,27923.0,3.07469939]
[1680561032147,0.02288,27924.0,27923.0,2.85383781]
[1680561032838,0.02288,27924.0,27923.0,2.84725381]
[1680561033067,0.02288,27924.0,27923.0,3.04533588]
[1680561034607,0.02288,27924.0,27923.0,3.14533588]
[1680561034846,0.02288,27924.0,27923.0,1.48137905]
[1680561035125,0.43173649,27927.0,27925.0,0.27078319]
[1680561035359,0.41217281,27927.0,27925.0,0.61879239]
[1680561035569,0.41217281,27927.0,27926.0,0.40668319]
[1680561035789,0.00108,27927.0,27926.0,0.40668319]
[1680561036001,0.00108,27927.0,27926.0,0.23490319]
[1680561036457,0.10108,27927.0,27926.0,0.23620319]
[1680561036675,0.10108,27927.0,27926.0,0.26420319]
[1680561036895,0.10108,27927.0,27926.0,0.23620319]
[1680561037116,0.39468287,27926.0,27925.0,0.00012]
[1680561037344,0.39468287,27926.0,27924.0,0.42376]
[1680561037575,0.0009,27925.0,27924.0,0.42394]
[1680561038002,0.0009,27925.0,27924.0,0.41712683]
[1680561038436,0.42042209,27925.0,27924.0,0.41712683]
[1680561038701,0.42060209,27925.0,27924.0,0.03912683]
[1680561038940,0.62060209,27925.0,27924.0,0.03912683]
[1680561039160,0.62042209,27925.0,27924.0,0.06712683]
[1680561039389,0.62042209,27925.0,27924.0,0.03912683]
[1680561039608,0.62042209,27925.0,27924.0,0.06712683]
[1680561039841,0.20108,27925.0,27924.0,0.06712683]
[1680561040062,0.206451,27925.0,27924.0,0.06712683]
[1680561040357,0.247475,27925.0,27924.0,0.03912683]
[1680561040574,0.43651197,27925.0,27924.0,0.0604537]
[1680561041018,0.55125537,27925.0,27924.0,0.0604537]
[1680561041454,0.55125537,27925.0,27924.0,0.0324537]
[1680561041715,0.55125537,27925.0,27924.0,0.0604537]
[1680561041934,0.55125537,27925.0,27924.0,0.0174537]
[1680561042157,0.43651197,27925.0,27924.0,0.0454537]
[1680561042377,0.53651197,27925.0,27924.0,0.0454537]
[1680561042818,0.96581552,27925.0,27924.0,0.0454537]
[1680561043052,0.96581552,27925.0,27924.0,0.03886434]
[1680561043053,0.43651197,27925.0,27924.0,0.03886434]
[1680561043277,0.82266222,27925.0,27924.0,0.03886434]
[1680561046055,0.7,27919.0,27918.0,0.00018]
[1680561046278,0.95053828,27919.0,27917.0,5.081e-05]
[1680561046498,0.33258475,27918.0,27917.0,5.081e-05]
[1680561046961,0.33276475,27918.0,27917.0,5.081e-05]
[1680561047841,0.19988,27913.0,27912.0,0.96317279]
[1680561048118,0.20072,27913.0,27912.0,0.96317279]
[1680561048336,0.20072,27913.0,27912.0,1.31782335]
[1680561048561,0.20072,27913.0,27912.0,1.33550835]
[1680561048765,0.20072,27913.0,27912.0,0.91562201]
[1680561048979,0.20072,27913.0,27912.0,1.27190526]
[1680561049195,0.20372,27913.0,27912.0,1.29067726]
[1680561049632,0.20072,27913.0,27912.0,1.29067726]
[1680561049850,0.20372,27913.0,27912.0,0.9171947]
[1680561050528,0.20372,27913.0,27912.0,0.91050577]
[1680561050756,0.20072,27913.0,27912.0,0.91050577]
[1680561050979,0.20372,27913.0,27912.0,0.91650577]
[1680561051202,0.20072,27913.0,27912.0,0.91050577]
[1680561051653,0.20072,27913.0,27912.0,0.95238577]
[1680561051654,0.20372,27913.0,27912.0,0.95238577]
[1680561051878,0.20072,27913.0,27912.0,0.94638577]
[1680561052134,0.0039,27913.0,27912.0,0.59642352]
[1680561052359,0.0009,27913.0,27912.0,0.61373097]
[1680561052816,0.0009,27913.0,27912.0,0.4298052]
[1680561053030,0.0039,27913.0,27912.0,0.82589097]
[1680561053254,0.0039,27913.0,27912.0,0.99773097]
[1680561053907,0.0039,27913.0,27912.0,0.60181797]
[1680561054161,0.0039,27913.0,27912.0,0.59681797]
[1680561054423,0.0039,27913.0,27912.0,0.61473097]
[1680561054616,0.0039,27913.0,27912.0,0.59681797]
[1680561054851,0.0009,27913.0,27912.0,0.60873097]
[1680561055143,0.0039,27913.0,27912.0,0.61473097]
[1680561055404,0.0036,27913.0,27912.0,0.61473097]
[1680561055752,0.0036,27913.0,27912.0,0.60813114]
[1680561055966,0.0006,27913.0,27912.0,0.60213114]
[1680561057047,0.0036,27913.0,27912.0,0.60813114]
[1680561057266,0.0006,27913.0,27912.0,0.60213114]
[1680561057497,0.003,27913.0,27912.0,0.60813114]
[1680561057711,0.00018,27915.0,27912.0,0.60213114]
[1680561057925,0.36952926,27914.0,27913.0,0.015319]
[1680561058141,0.36970926,27914.0,27913.0,0.18050989]
[1680561058355,0.00018,27914.0,27913.0,0.18050989]
[1680561058587,0.4402086,27915.0,27913.0,0.18050989]
[1680561058809,0.4402086,27915.0,27913.0,0.17184]
[1680561058810,0.4403886,27915.0,27913.0,0.17184]
[1680561059021,0.3408022,27914.0,27913.0,0.006]
[1680561059241,0.3409822,27914.0,27913.0,0.018892]
[1680561059461,0.00318,27914.0,27913.0,0.190732]
[1680561059679,0.003,27914.0,27913.0,0.62622697]
[1680561059900,0.00018,27915.0,27913.0,0.99822697]
[1680561060119,0.00018,27915.0,27914.0,0.012781]
[1680561060333,0.00018,27915.0,27914.0,0.184621]
[1680561060553,0.53642732,27916.0,27914.0,0.17801305]
[1680561060837,0.53642732,27916.0,27915.0,0.008183]
[1680561061070,0.003,27915.0,27914.0,0.006]
[1680561061291,0.53642732,27916.0,27915.0,0.17184]
[1680561061510,0.53942732,27916.0,27914.0,0.17784]
[1680561061727,0.53942732,27916.0,27915.0,0.182989]
[1680561061951,0.2006,27916.0,27915.0,0.17184]
[1680561062175,0.20042,27916.0,27915.0,0.17184]
[1680561062391,0.2006,27916.0,27914.0,0.17184]
[1680561062613,0.2006,27916.0,27915.0,0.17184]
[1680561062836,0.6280821,27916.0,27915.0,0.17184]
[1680561063064,0.6280821,27916.0,27914.0,0.16514026]
[1680561063325,0.6280821,27916.0,27914.0,0.17784]
[1680561063520,0.6280821,27916.0,27915.0,0.17184]
[1680561063978,0.6280821,27916.0,27914.0,0.17202]
[1680561064201,0.6309021,27916.0,27915.0,0.006]
[1680561064642,0.6787951,27916.0,27915.0,0.17784]
[1680561065139,0.6787951,27916.0,27915.0,0.006]
[1680561065595,0.6787951,27916.0,27913.0,0.17129258]
[1680561065820,0.46705444,27915.0,27913.0,0.17184]
[1680561065989,0.46705444,27915.0,27914.0,0.17184]
[1680561066213,0.46675444,27915.0,27914.0,0.17184]
[1680561066412,0.46675444,27915.0,27913.0,0.17202]
[1680561066979,0.46975444,27915.0,27913.0,0.17202]
[1680561067220,0.46675444,27915.0,27913.0,0.17184]
[1680561067427,0.46975444,27915.0,27913.0,0.17184]
[1680561068092,0.46993444,27915.0,27913.0,0.16518616]
[1680561068314,0.46693444,27915.0,27914.0,0.17184]
[1680561068529,0.46693444,27915.0,27913.0,0.17184]
[1680561068731,0.46693444,27915.0,27914.0,0.17184]
[1680561068948,0.46693444,27915.0,27913.0,0.17184]
[1680561069165,0.46693444,27915.0,27914.0,0.17184]
[1680561069371,0.46693444,27915.0,27913.0,0.17184]
[1680561069595,0.46693444,27915.0,27914.0,0.17184]
[1680561069596,0.09334112,27915.0,27914.0,0.17184]
[1680561069826,0.09334112,27915.0,27910.0,0.00018]
[1680561069827,0.19982,27912.0,27910.0,0.00018]
[1680561070061,0.0006,27911.0,27909.0,0.30677537]
[1680561070328,0.0006,27911.0,27910.0,0.19539409]
[1680561070571,0.0006,27911.0,27910.0,0.1719]
[1680561070799,0.0006,27911.0,27909.0,0.1719]
[1680561070800,0.39851806,27911.0,27909.0,0.1719]
[1680561071081,0.40151806,27911.0,27908.0,0.37818]
[1680561071321,0.0006,27909.0,27908.0,0.17208]
[1680561071547,0.0006,27909.0,27908.0,0.1719]
[1680561072001,0.0006,27909.0,27907.0,0.1719]
[1680561072002,0.45526851,27909.0,27907.0,0.1719]
[1680561072234,0.23816521,27908.0,27906.0,0.02098]
[1680561072456,0.047478,27907.0,27906.0,0.0208]
[1680561072679,0.23900482,27907.0,27906.0,0.0208]
[1680561072915,0.66156275,27907.0,27906.0,0.0208]
[1680561073149,0.67202443,27907.0,27906.0,0.01415544]
[1680561073360,0.24258782,27907.0,27906.0,0.01415544]
[1680561073850,0.24458782,27907.0,27906.0,0.01415544]
[1680561074521,0.2911964,27907.0,27906.0,0.01415544]
[1680561074749,1.0893764,27907.0,27906.0,0.01415544]
[1680561074978,1.0913764,27907.0,27906.0,0.01415544]
[1680561075197,1.0893764,27907.0,27906.0,0.01415544]
[1680561075417,1.0892564,27907.0,27906.0,0.01365544]
[1680561075644,1.0892564,27907.0,27906.0,0.00706083]
[1680561075645,1.0976964,27907.0,27906.0,0.00706083]
[1680561075877,1.0976964,27907.0,27900.0,0.0208]
[1680561075878,0.19982,27901.0,27900.0,0.0208]
[1680561076136,0.46578911,27901.0,27900.0,0.0208]
[1680561076352,0.44594543,27901.0,27900.0,0.0208]
[1680561076822,0.49269037,27901.0,27900.0,0.0208]
[1680561077522,0.50119037,27901.0,27900.0,0.0208]
[1680561077983,0.60219037,27901.0,27900.0,0.0208]
[1680561078219,0.60119037,27901.0,27900.0,0.0208]
[1680561078419,0.60419037,27901.0,27900.0,0.0208]
[1680561078758,0.1997,27897.0,27896.0,0.0208]
[1680561078983,0.48628602,27897.0,27896.0,0.0208]
[1680561079201,0.45228434,27897.0,27896.0,0.0208]
[1680561079642,0.45210434,27897.0,27896.0,0.0208]
[1680561080086,0.45228434,27897.0,27896.0,0.0208]
[1680561080318,0.45167315,27897.0,27896.0,0.0208]
[1680561080768,0.8355539,27897.0,27896.0,0.0208]
[1680561080983,0.52551098,27897.0,27896.0,0.0208]
[1680561081248,0.80714327,27897.0,27896.0,0.0208]
[1680561081468,0.80872727,27897.0,27896.0,0.0208]
[1680561081693,0.80972727,27897.0,27896.0,0.0208]
[1680561081920,0.80872727,27897.0,27896.0,0.0208]
[1680561082133,0.81072727,27897.0,27896.0,0.0208]
[1680561082570,0.80872727,27897.0,27896.0,0.0208]
[1680561082824,0.80972727,27897.0,27896.0,0.0208]
[1680561083599,0.9004348,27897.0,27896.0,0.0208]
[1680561083863,0.9024348,27897.0,27896.0,0.0208]
[1680561084112,0.9004348,27897.0,27896.0,0.0208]
[1680561084401,0.9014348,27897.0,27896.0,0.0208]
[1680561084634,0.53621168,27897.0,27896.0,0.0208]
[1680561084887,0.97675304,27897.0,27896.0,0.0208]
[1680561085186,0.97475304,27897.0,27896.0,0.0208]
[1680561085368,0.97575304,27897.0,27896.0,0.0208]
[1680561085600,0.97475304,27897.0,27896.0,0.0208]
[1680561085834,0.33694287,27897.0,27896.0,0.0208]
[1680561086055,0.24523534,27897.0,27896.0,0.0208]
[1680561086223,0.34523534,27897.0,27896.0,0.0208]
[1680561086499,0.24723534,27897.0,27896.0,0.0208]
[1680561086690,0.24523534,27897.0,27896.0,0.0208]
[1680561086900,0.24623534,27897.0,27896.0,0.0208]
[1680561087138,0.27157577,27897.0,27896.0,0.0208]
[1680561087783,0.67057577,27897.0,27896.0,0.0208]
[1680561087995,0.67357577,27897.0,27896.0,0.0208]
[1680561088231,0.67057577,27897.0,27896.0,0.0208]
[1680561088672,0.87834458,27897.0,27896.0,0.0208]
[1680561089336,0.87934458,27897.0,27896.0,0.01201833]
[1680561089560,0.90534458,27897.0,27896.0,0.01201833]
[1680561089999,0.75300415,27897.0,27896.0,0.01201833]
[1680561090221,0.77150415,27897.0,27896.0,0.01201833]
[1680561090447,0.93746973,27897.0,27896.0,0.01201833]
[1680561090665,0.96805373,27897.0,27896.0,0.01201833]
[1680561090895,0.94105373,27897.0,27896.0,0.01201833]
[1680561091108,0.96805373,27897.0,27896.0,0.01201833]
[1680561092053,0.64277561,27897.0,27896.0,0.01201833]
[1680561092256,0.92818492,27897.0,27896.0,0.01501833]
[1680561092473,0.54523534,27897.0,27896.0,0.01201833]
[1680561092692,0.95063936,27897.0,27896.0,0.01201833]
[1680561092925,0.95063936,27897.0,27896.0,0.01501833]
[1680561092926,0.54723534,27897.0,27896.0,0.01501833]
[1680561093132,0.60212757,27897.0,27896.0,0.01201833]
[1680561093425,0.61162757,27897.0,27896.0,0.01501833]
[1680561093659,0.80989638,27897.0,27896.0,0.01201833]
[1680561093881,0.81089638,27897.0,27896.0,0.01501833]
[1680561094078,0.80989638,27897.0,27896.0,0.01201833]
[1680561095000,0.82589638,27897.0,27896.0,0.01201833]
[1680561095224,0.80949638,27897.0,27896.0,0.01201833]
[1680561095462,0.83649638,27897.0,27896.0,0.01201833]
[1680561095653,0.80949638,27897.0,27896.0,0.01201833]
[1680561095928,0.83649638,27897.0,27896.0,0.01201833]
[1680561096342,0.80949638,27897.0,27896.0,0.01201833]
[1680561096555,0.83649638,27897.0,27896.0,0.01201833]
[1680561097222,0.83469638,27897.0,27896.0,0.01201833]
[1680561098109,0.83469638,27897.0,27896.0,0.00701833]
[1680561099807,0.93469638,27897.0,27896.0,0.00701833]
[1680561100899,0.83469638,27897.0,27896.0,0.00701833]
[1680561101836,0.83487638,27897.0,27896.0,0.00701833]
[1680561102298,0.83469638,27897.0,27896.0,0.00701833]
[1680561102526,2.1250529,27897.0,27896.0,0.00701833]
[1680561102748,2.1250529,27897.0,27896.0,0.00201833]
[1680561103137,2.2250529,27897.0,27896.0,0.00201833]
[1680561103391,2.2300529,27897.0,27896.0,0.00201833]
[1680561108647,2.2300529,27897.0,27896.0,0.00171833]
[1680561110002,2.51576173,27897.0,27894.0,0.01190833]
[1680561110246,0.19313986,27895.0,27894.0,0.01190833]
[1680561110462,1.59524638,27895.0,27894.0,0.01190833]
[1680561110677,1.99524638,27895.0,27894.0,0.01190833]
[1680561110895,2.00374638,27895.0,27894.0,0.01190833]
[1680561111126,2.2923434,27895.0,27894.0,0.01190833]
[1680561111576,2.3193434,27895.0,27894.0,0.01190833]
[1680561112228,2.2923434,27895.0,27894.0,0.01190833]
[1680561113164,2.3193434,27895.0,27894.0,0.01190833]
[1680561115016,2.3193434,27895.0,27894.0,8.33e-06]
[1680561115017,2.75980785,27895.0,27894.0,8.33e-06]
[1680561115243,2.75970785,27895.0,27894.0,8.33e-06]
[1680561115971,2.73270785,27895.0,27894.0,8.33e-06]
[1680561116268,2.3192434,27895.0,27894.0,8.33e-06]
[1680561116532,0.19926881,27890.0,27889.0,0.0208]
[1680561116813,0.71103718,27890.0,27889.0,0.0208]
[1680561117083,1.98155002,27890.0,27889.0,0.0208]
[1680561117344,2.28155002,27890.0,27889.0,0.0208]
[1680561117940,2.30855002,27890.0,27889.0,0.0208]
[1680561118215,0.19926881,27887.0,27880.0,0.00073119]
[1680561118491,0.1942897,27881.0,27880.0,0.00073119]
[1680561118766,0.28732038,27881.0,27880.0,0.00073119]
[1680561119080,0.2674767,27881.0,27880.0,0.00073119]
[1680561119383,0.2674767,27881.0,27879.0,0.0208]
[1680561119384,0.63269605,27881.0,27879.0,0.0208]
[1680561119658,0.64541583,27880.0,27879.0,0.0208]
[1680561119924,0.65750183,27880.0,27879.0,0.0208]
[1680561120412,0.65750183,27880.0,27879.0,0.00132728]
[1680561120415,1.94856133,27880.0,27879.0,0.00132728]
[1680561120650,2.02594558,27880.0,27879.0,0.00132728]
[1680561120935,2.02594558,27880.0,27869.0,0.0208]
[1680561120936,0.1,27877.0,27869.0,0.0208]
[1680561121208,0.19564057,27870.0,27869.0,0.01284219]
[1680561121480,0.27293625,27870.0,27869.0,0.01284219]
[1680561121752,0.57311625,27870.0,27869.0,0.01284219]
[1680561122029,0.54609657,27870.0,27869.0,0.01284219]
[1680561122304,0.54732557,27870.0,27869.0,0.01284219]
[1680561122525,0.61983073,27870.0,27869.0,0.01284219]
[1680561122818,0.55201556,27870.0,27869.0,0.0880361]
[1680561123015,0.55201556,27870.0,27869.0,0.0912361]
[1680561123016,0.19682057,27870.0,27869.0,0.0912361]
[1680561123731,0.43471822,27879.0,27873.0,0.2]
[1680561123945,0.34826467,27877.0,27874.0,0.14189681]
[1680561124170,0.19909886,27876.0,27874.0,0.14189681]